fUSD/lending_fUSD_20240327
["ID","MTS","AMOUNT","RATE_DAILY","PERIOD"]
[320723170,1711535440441,-537.0,0.00052615,120]
[320723171,1711535440450,-5073.64995356,0.00052687,30]
[320723172,1711535440459,-173.032719,0.00052698,87]
[320723173,1711535440469,-1007.55150015,0.00052743,120]
[320723174,1711535440479,-173.032719,0.00052798,88]
[320723175,1711535440489,-540.41,0.00052799,2]
[320723176,1711535440498,-1012.01,0.00052876,120]
[320723177,1711535440508,-173.032719,0.00052898,89]
[320723178,1711535440517,-162.87948201,0.00052963,60]
[320723179,1711535440527,-173.032719,0.00052998,90]
[320723180,1711535440731,-10000.0,0.00053,14]
[320723181,1711535440742,-155.77,0.00053,7]
[320723182,1711535440751,-9221.64878868,0.00053,4]
[320723183,1711535440760,-341.47005721,0.00053083,2]
[320723184,1711535440770,-250.99538938,0.00053092,4]
[320723185,1711535440779,-173.032719,0.00053098,91]
[320723186,1711535440788,-500.0,0.0005315,60]
[320723187,1711535440797,-158.12704685,0.00053182,60]
[320723188,1711535440808,-7046.86535212,0.00053182,2]
[320723189,1711535440817,-173.032719,0.00053198,92]
[320723190,1711535440826,-165.34,0.000532,14]
[320723191,1711535440835,-173.032719,0.00053298,93]
[320723192,1711535440844,-155.94263344,0.00053301,52]
[320723193,1711535440854,-5284.6488,0.00053324,2]
[320723194,1711535440863,-173.032719,0.00053398,94]
[320723195,1711535440872,-155.01,0.000534,7]
[320723196,1711535440882,-1081.60139021,0.00053428,9]
[320723197,1711535440892,-154.78058138,0.0005343,2]
[320723198,1711535440901,-1000.0,0.0005343,2]
[320723199,1711535440911,-39801.9525,0.0005343,2]
[320723200,1711535440919,-844.2957,0.0005343,2]
[320723201,1711535440928,-24175.9421,0.0005343,2]
[320723202,1711535440938,-100000.0,0.0005343,2]
[320723203,1711535440947,-173.032719,0.00053498,95]
[320723204,1711535440956,-245000.0,0.00053528,2]
[320723205,1711535440965,-500.0,0.00053529,2]
[320723206,1711535440974,-1081.60139021,0.00053529,9]
[320723207,1711535440983,-6046.06122864,0.0005353,4]
[320723208,1711535440993,-191320.04665419,0.0005353,4]
[320723209,1711535441008,-272778.47304873,0.0005353,4]
[320723210,1711535441018,-173.032719,0.00053598,96]
[320723211,1711535441027,-1321.62915071,0.00053628,4]
[320723212,1711535441036,-431.83285166,0.00053628,4]
[320723213,1711535441045,-165.81336204,0.00053628,4]
[320723214,1711535441054,-1928.74183422,0.00053628,4]
[320723215,1711535441063,-400.0,0.00053628,2]
[320723216,1711535441072,-508.13215368,0.00053628,2]
[320723217,1711535441081,-587.48522145,0.00053628,4]
[320723218,1711535441092,-357.36491215,0.00053628,4]
[320723219,1711535441102,-155.0,0.00053628,4]
[320723220,1711535441113,-486.5955382,0.00053628,4]
[320723221,1711535441127,-281.17758265,0.00053628,4]
[320723222,1711535441136,-1852.95,0.00053628,120]
[320723223,1711535441146,-1852.95,0.00053628,120]
[320723224,1711535441157,-1852.95,0.00053628,120]
[320723225,1711535441166,-1852.95,0.00053628,120]
[320723226,1711535441175,-1852.95,0.00053628,120]
[320723227,1711535441184,-1852.95,0.00053628,120]
[320723228,1711535441194,-1852.95,0.00053628,120]
[320723229,1711535441203,-1852.95,0.00053628,120]
[320723230,1711535441212,-1852.95,0.00053628,120]
[320723231,1711535441222,-1852.95,0.00053628,120]
[320723232,1711535441232,-1852.95,0.00053628,120]
[320723233,1711535441241,-1852.95,0.00053629,120]
[320723234,1711535441250,-1852.95,0.00053629,120]
[320723235,1711535441260,-1852.95,0.00053629,120]
[320723236,1711535441269,-1852.95,0.00053629,120]
[320723237,1711535441278,-1852.95,0.00053629,120]
[320723238,1711535441294,-1852.95,0.00053629,120]
[320723239,1711535441352,-1852.95,0.00053629,120]
[320723240,1711535441361,-1852.95,0.00053629,120]
[320723241,1711535441370,-1852.95,0.00053629,120]
[320723242,1711535441379,-1852.95,0.00053629,120]
[320723243,1711535441388,-1852.95,0.00053629,120]
[320723244,1711535441398,-1852.95,0.00053629,120]
[320723245,1711535441407,-1853.00361893,0.00053629,120]
[320723246,1711535441417,-4351.12306469,0.0005363,4]
[320723247,1711535441426,-156.89639175,0.00053632,60]
[320723248,1711535441435,-422.95,0.00053642,120]
[320723249,1711535441447,-164.88553698,0.00053688,60]
[320723250,1711535441457,-500.0,0.00053698,60]
[320723251,1711535441468,-173.032719,0.00053698,97]
[320723252,1711535441479,-1012.01,0.00053698,120]
[320723253,1711535441490,-548.0,0.00053699,120]
[320723254,1711535441500,-387.55,0.000537,30]
[320723255,1711535441511,-163.57700477,0.00053722,60]
[320723256,1711535441523,-386.60453288,0.0005375,30]
[320723257,1711535441533,-173.032719,0.00053798,98]
[320723258,1711535441542,-9908.0231828,0.00053821,2]
[320723259,1711535441555,-173.032719,0.00053898,99]
[320723260,1711535441564,-548.0,0.00053972,120]
[320723261,1711535441574,-173.032719,0.00053998,100]
[320723262,1711535441583,-309.9848945,0.00054,4]
[320723263,1711535441593,-173.032719,0.00054098,101]
[320723264,1711535441603,-157.032718,0.00054198,102]
[320723265,1711535441613,-173.032719,0.00054198,102]
[320723266,1711535441624,-190.24451948,0.00054216,60]
[320723267,1711535441633,-158.12704685,0.00054225,60]
[320723268,1711535441643,-18429.744,0.00054237,120]
[320723269,1711535441653,-548.0,0.00054246,120]
[320723270,1711535441662,-500.0,0.00054246,60]
[320723271,1711535441672,-175.07748,0.0005425,69]
[320723272,1711535441681,-156.89639175,0.00054288,60]
[320723273,1711535441691,-173.032719,0.00054298,103]
[320723274,1711535441700,-1518.54540362,0.00054312,120]
[320723275,1711535441710,-173.032719,0.00054398,104]
[320723276,1711535441719,-165.34,0.000544,14]
[320723277,1711535441731,-1067.22216283,0.00054423,120]
[320723278,1711535441741,-151.0,0.00054443,2]
[320723279,1711535441751,-157.032718,0.00054498,103]
[320723280,1711535441760,-173.032718,0.00054498,105]
[320723281,1711535441770,-173.032719,0.00054498,105]
[320723282,1711535441780,-548.0,0.0005452,120]
[320723283,1711535441789,-1012.01,0.0005452,120]
[320723284,1711535441798,-173.032719,0.00054598,106]
[320723285,1711535441809,-1518.54540362,0.00054605,120]
[320723286,1711535441818,-1067.22216283,0.00054622,120]
[320723287,1711535441829,-440.0,0.00054625,7]
[320723288,1711535441839,-5073.64995356,0.00054634,32]
[320723289,1711535441850,-200.0,0.00054636,120]
[320723290,1711535441860,-341.47005721,0.00054694,2]
[320723291,1711535441870,-173.032719,0.00054698,107]
[320723292,1711535441881,-155.77,0.000547,8]
[320723293,1711535441890,-155.01,0.000547,7]
[320723294,1711535441899,-150.0,0.00054721,7]
[320723295,1711535441910,-160.13519834,0.00054791,60]
[320723296,1711535441920,-4298.82546638,0.00054792,2]
[320723297,1711535441930,-2660.61772684,0.00054793,4]
[320723298,1711535441940,-150.0,0.00054793,14]
[320723299,1711535441950,-500.0,0.00054794,2]
[320723300,1711535441961,-151.0,0.00054794,7]
[320723301,1711535441970,-500.0,0.00054794,2]
[320723302,1711535441982,-151.0,0.00054794,14]
[320723303,1711535441993,-382.18816116,0.00054794,2]
[320723304,1711535442003,-500.0,0.00054794,120]
[320723305,1711535442013,-500.0,0.00054794,120]
[320723306,1711535442023,-753.04,0.00054794,120]
[320723307,1711535442032,-500.0,0.00054794,120]
[320723308,1711535442043,-500.0,0.00054794,120]
[320723309,1711535442053,-500.0,0.00054794,120]
[320723310,1711535442064,-500.0,0.00054794,120]
[320723311,1711535442074,-151.0,0.00054794,120]
[320723312,1711535442084,-500.0,0.00054794,120]
[320723313,1711535442094,-500.0,0.00054794,120]
[320723314,1711535442105,-151.0,0.00054794,120]
[320723315,1711535442115,-500.0,0.00054794,120]
[320723316,1711535442126,-500.0,0.00054794,120]
[320723317,1711535442139,-500.0,0.00054794,120]
[320723318,1711535442148,-500.0,0.00054794,120]
[320723319,1711535442158,-500.0,0.00054794,120]
[320723320,1711535442167,-500.0,0.00054794,120]
[320723321,1711535442177,-674.21,0.00054794,120]
[320723322,1711535442186,-567.54,0.00054794,120]
[320723323,1711535442194,-500.0,0.00054794,120]
[320723324,1711535442204,-500.0,0.00054794,120]
[320723325,1711535442214,-515.57,0.00054794,120]
[320723326,1711535442223,-500.0,0.00054794,120]
[320723327,1711535442234,-1086.98,0.00054794,120]
[320723328,1711535442244,-500.0,0.00054794,120]
[320723329,1711535442253,-500.0,0.00054794,120]
[320723330,1711535442262,-500.0,0.00054794,120]
[320723331,1711535442271,-500.0,0.00054794,120]
[320723332,1711535442280,-500.0,0.00054794,120]
[320723333,1711535442290,-500.0,0.00054794,2]
[320723334,1711535442299,-500.0,0.00054794,120]
[320723335,1711535442308,-500.0,0.00054794,120]
[320723336,1711535442318,-500.0,0.00054794,120]
[320723337,1711535442327,-500.0,0.00054794,120]
[320723338,1711535442336,-500.0,0.00054794,120]
[320723339,1711535442345,-500.0,0.00054794,120]
[320723340,1711535442355,-544.76,0.00054794,120]
[320723341,1711535442365,-500.0,0.00054794,120]
[320723342,1711535442374,-500.0,0.00054794,120]
[320723343,1711535442385,-500.0,0.00054794,120]
[320723344,1711535442394,-500.0,0.00054794,120]
[320723345,1711535442403,-500.0,0.00054794,120]
[320723346,1711535442413,-500.0,0.00054794,120]
[320723347,1711535442422,-500.0,0.00054794,120]
[320723348,1711535442431,-1899.79,0.00054794,120]
[320723349,1711535442440,-500.0,0.00054794,120]
[320723350,1711535442450,-627.88,0.00054794,120]
[320723351,1711535442459,-500.0,0.00054794,120]
[320723352,1711535442469,-500.0,0.00054794,120]
[320723353,1711535442478,-496.0574366,0.00054794,120]
[320723355,1711535442487,-659.87,0.00054794,30]
[320723356,1711535442496,-691.61,0.00054794,120]
[320723357,1711535442505,-731.47,0.00054794,120]
[320723358,1711535442514,-500.0,0.00054794,120]
[320723359,1711535442524,-151.0,0.00054794,120]
[320723360,1711535442533,-500.0,0.00054794,120]
[320723361,1711535442542,-560.87,0.00054794,120]
[320723362,1711535442551,-772.81,0.00054794,120]
[320723363,1711535442561,-500.0,0.00054794,120]
[320723364,1711535442569,-705.52,0.00054794,120]
[320723365,1711535442578,-518.48840475,0.00054794,120]
[320723366,1711535442588,-500.0,0.00054794,120]
[320723367,1711535442597,-570.69,0.00054794,120]
[320723368,1711535442606,-622.17,0.00054794,120]
[320723369,1711535442615,-500.0,0.00054794,120]
[320723370,1711535442625,-500.0,0.00054794,120]
[320723371,1711535442634,-502.85,0.00054794,120]
[320723373,1711535442643,-595.8,0.00054794,120]
[320723374,1711535442653,-500.0,0.00054794,120]
[320723376,1711535442662,-583.89,0.00054794,120]
[320723377,1711535442671,-603.5,0.00054794,120]
[320723379,1711535442680,-575.73,0.00054794,120]
[320723380,1711535442690,-500.0,0.00054794,120]
[320723381,1711535442699,-500.0,0.00054794,120]
[320723382,1711535442708,-563.4,0.00054794,120]
[320723383,1711535442717,-500.0,0.00054794,120]
[320723384,1711535442727,-500.0,0.00054794,120]
[320723385,1711535442737,-1243.71,0.00054794,120]
[320723386,1711535442746,-500.0,0.00054794,120]
[320723387,1711535442755,-500.0,0.00054794,120]
[320723388,1711535442764,-1855.76,0.00054794,120]
[320723389,1711535442773,-666.08,0.00054794,120]
[320723390,1711535442782,-500.0,0.00054794,120]
[320723391,1711535442793,-500.0,0.00054794,120]
[320723392,1711535442803,-500.0,0.00054794,120]
[320723393,1711535442813,-500.0,0.00054794,120]
[320723394,1711535442822,-500.0,0.00054794,120]
[320723395,1711535442831,-500.0,0.00054794,120]
[320723396,1711535442842,-500.0,0.00054794,120]
[320723397,1711535442851,-505.17111938,0.00054794,120]
[320723398,1711535442860,-500.0,0.00054794,120]
[320723399,1711535442870,-500.0,0.00054794,120]
[320723400,1711535442879,-501.77508693,0.00054794,120]
[320723401,1711535442889,-201.1643096,0.00054794,120]
[320723402,1711535442901,-500.0,0.00054794,120]
[320723403,1711535442911,-500.0,0.00054794,120]
[320723404,1711535442921,-500.0,0.00054794,120]
[320723405,1711535442930,-510.0974238,0.00054794,120]
[320723406,1711535442940,-770.25,0.00054794,120]
[320723407,1711535442949,-500.0,0.00054794,120]
[320723408,1711535442958,-500.0,0.00054794,120]
[320723409,1711535442968,-500.0,0.00054794,120]
[320723410,1711535442980,-500.0,0.00054794,120]
[320723411,1711535442989,-500.0,0.00054794,120]
[320723412,1711535442999,-500.0,0.00054794,120]
[320723413,1711535443008,-2000.0,0.00054794,120]
[320723414,1711535443018,-500.0,0.00054794,120]
[320723415,1711535443027,-500.0,0.00054794,120]
[320723416,1711535443036,-500.0,0.00054794,120]
[320723417,1711535443047,-500.0,0.00054794,120]
[320723418,1711535443056,-528.79,0.00054794,120]
[320723419,1711535443065,-500.0,0.00054794,120]
[320723420,1711535443074,-646.22,0.00054794,120]
[320723421,1711535443084,-569.40070158,0.00054794,120]
[320723423,1711535443093,-500.0,0.00054794,120]
[320723425,1711535443103,-754.39,0.00054794,120]
[320723427,1711535443112,-762.11,0.00054794,120]
[320723429,1711535443126,-502.67601051,0.00054794,2]
[320723431,1711535443135,-500.0,0.00054794,120]
[320723433,1711535443145,-500.0,0.00054794,120]
[320723435,1711535443157,-680.98,0.00054794,120]
[320723437,1711535443167,-502.00158178,0.00054794,120]
[320723439,1711535443177,-506.0760227,0.00054794,120]
[320723441,1711535443187,-500.0,0.00054794,120]
[320723442,1711535443198,-626.23,0.00054794,120]
[320723443,1711535443209,-500.0,0.00054794,120]
[320723444,1711535443219,-500.0,0.00054794,120]
[320723445,1711535443229,-500.0,0.00054794,120]
[320723446,1711535443240,-500.0,0.00054794,120]
[320723447,1711535443250,-500.0,0.00054794,120]
[320723448,1711535443261,-500.0,0.00054794,120]
[320723449,1711535443271,-500.0,0.00054794,120]
[320723450,1711535443282,-500.0,0.00054794,120]
[320723451,1711535443292,-500.0,0.00054794,120]
[320723452,1711535443303,-569.87,0.00054794,120]
[320723453,1711535443313,-500.0,0.00054794,120]
[320723454,1711535443322,-508.08831004,0.00054794,120]
[320723455,1711535443331,-500.0,0.00054794,120]
[320723456,1711535443341,-500.0,0.00054794,7]
[320723457,1711535443351,-399.65,0.00054794,120]
[320723458,1711535443361,-500.0,0.00054794,120]
[320723459,1711535443372,-500.0,0.00054794,120]
[320723460,1711535443382,-505.60188997,0.00054794,120]
[320723461,1711535443392,-500.0,0.00054794,120]
[320723462,1711535443402,-500.0,0.00054794,120]
[320723463,1711535443413,-1161.61,0.00054794,120]
[320723464,1711535443424,-1265.74,0.00054794,120]
[320723465,1711535443435,-3357.71176501,0.00054794,4]
[320723466,1711535443444,-500.0,0.00054794,120]
[320723467,1711535443455,-519.55839831,0.00054794,120]
[320723468,1711535443465,-515.08,0.00054794,120]
[320723469,1711535443477,-500.0,0.00054794,120]
[320723470,1711535443488,-500.0,0.00054794,120]
[320723471,1711535443500,-500.0,0.00054794,120]
[320723472,1711535443511,-506.31798265,0.00054794,120]
[320723473,1711535443522,-500.0,0.00054794,120]
[320723474,1711535443532,-500.0,0.00054794,120]
[320723475,1711535443542,-500.0,0.00054794,120]
[320723476,1711535443551,-500.0,0.00054794,120]
[320723477,1711535443561,-548.0,0.00054794,120]
[320723478,1711535443571,-706.34,0.00054794,120]
[320723479,1711535443581,-500.0,0.00054794,120]
[320723480,1711535443590,-534.57964785,0.00054794,4]
[320723481,1711535443601,-500.0,0.00054794,120]
[320723482,1711535443611,-503.0514996,0.00054794,120]
[320723483,1711535443621,-500.0,0.00054794,120]
[320723484,1711535443631,-500.0,0.00054794,120]
[320723485,1711535443641,-500.0,0.00054794,120]
[320723486,1711535443650,-500.0,0.00054794,120]
[320723487,1711535443660,-500.0,0.00054794,120]
[320723488,1711535443669,-556.88,0.00054794,120]
[320723489,1711535443679,-531.53,0.00054794,120]
[320723490,1711535443688,-521.11347212,0.00054794,120]
[320723491,1711535443699,-800.95,0.00054794,120]
[320723492,1711535443709,-500.0,0.00054794,120]
[320723493,1711535443719,-500.0,0.00054794,120]
[320723494,1711535443728,-500.0,0.00054794,120]
[320723495,1711535443737,-500.0,0.00054794,120]
[320723496,1711535443746,-500.0,0.00054794,120]
[320723497,1711535443756,-451.82930917,0.00054794,120]
[320723498,1711535443766,-263.36281181,0.00054794,120]
[320723499,1711535443775,-502.57191438,0.00054794,120]
[320723500,1711535443785,-889.53,0.00054794,120]
[320723501,1711535443795,-735.85,0.00054794,120]
[320723502,1711535443804,-500.0,0.00054794,120]
[320723503,1711535443814,-1464.03,0.00054794,120]
[320723504,1711535443825,-500.0,0.00054794,120]
[320723505,1711535443834,-500.0,0.00054794,120]
[320723506,1711535443844,-500.0,0.00054794,120]
[320723507,1711535443856,-500.0,0.00054794,120]
[320723508,1711535443866,-1125.85,0.00054794,120]
[320723509,1711535443875,-500.0,0.00054794,120]
[320723510,1711535443886,-500.0,0.00054794,120]
[320723511,1711535443898,-500.0,0.00054794,120]
[320723512,1711535443909,-681.79,0.00054794,120]
[320723513,1711535443919,-500.0,0.00054794,120]
[320723514,1711535443928,-500.0,0.00054794,120]
[320723515,1711535443938,-500.0,0.00054794,120]
[320723516,1711535443947,-713.41,0.00054794,120]
[320723517,1711535443957,-500.0,0.00054794,120]
[320723518,1711535443966,-500.0,0.00054794,120]
[320723519,1711535443975,-500.0,0.00054794,120]
[320723520,1711535443985,-1159.26,0.00054794,120]
[320723521,1711535443994,-862.64,0.00054794,120]
[320723522,1711535444004,-500.0,0.00054794,120]
[320723523,1711535444014,-500.0,0.00054794,120]
[320723524,1711535444023,-500.0,0.00054794,120]
[320723525,1711535444034,-500.0,0.00054794,120]
[320723526,1711535444044,-500.0,0.00054794,120]
[320723527,1711535444054,-802.34,0.00054794,120]
[320723528,1711535444065,-500.0,0.00054794,120]
[320723529,1711535444075,-7108.09,0.00054794,120]
[320723530,1711535444086,-510.06807033,0.00054794,120]
[320723531,1711535444098,-500.0,0.00054794,120]
[320723532,1711535444110,-500.0,0.00054794,120]
[320723533,1711535444120,-501.68562043,0.00054794,120]
[320723534,1711535444132,-500.0,0.00054794,120]
[320723535,1711535444143,-898.61,0.00054794,120]
[320723536,1711535444154,-500.0,0.00054794,120]
[320723537,1711535444163,-506.77389832,0.00054794,120]
[320723538,1711535444174,-5117.4,0.00054794,120]
[320723539,1711535444183,-633.14,0.00054794,120]
[320723540,1711535444193,-500.0,0.00054794,120]
[320723541,1711535444205,-500.0,0.00054794,120]
[320723542,1711535444216,-692.25,0.00054794,120]
[320723543,1711535444227,-500.0,0.00054794,120]
[320723544,1711535444238,-500.0,0.00054794,120]
[320723545,1711535444248,-500.0,0.00054794,120]
[320723546,1711535444257,-500.0,0.00054794,120]
[320723547,1711535444428,-13902.52,0.00054794,120]
[320723548,1711535444440,-892.32,0.00054794,120]
[320723549,1711535444450,-1060.45,0.00054794,120]
[320723550,1711535444463,-767.03,0.00054794,120]
[320723551,1711535444475,-500.0,0.00054794,120]
[320723552,1711535444485,-500.0,0.00054794,120]
[320723553,1711535444495,-500.0,0.00054794,120]
[320723554,1711535444505,-1474.18,0.00054794,120]
[320723555,1711535444517,-1966.94,0.00054794,120]
[320723556,1711535444527,-500.0,0.00054794,120]
[320723557,1711535444538,-500.0,0.00054794,120]
[320723558,1711535444549,-858.54,0.00054794,120]
[320723559,1711535444558,-500.0,0.00054794,120]
[320723560,1711535444567,-500.0,0.00054794,120]
[320723561,1711535444577,-620.02892298,0.00054794,120]
[320723562,1711535444588,-515.27,0.00054794,120]
[320723563,1711535444598,-508.01786223,0.00054794,120]
[320723564,1711535444608,-1168.18,0.00054794,120]
[320723565,1711535444619,-1891.94,0.00054794,120]
[320723566,1711535444631,-500.0,0.00054794,120]
[320723567,1711535444642,-5487.77,0.00054794,120]
[320723568,1711535444651,-818.89,0.00054794,120]
[320723569,1711535444660,-1968.88,0.00054794,120]
[320723570,1711535444670,-500.0,0.00054794,120]
[320723571,1711535444680,-500.0,0.00054794,120]
[320723572,1711535444689,-1901.48,0.00054794,120]
[320723573,1711535444698,-358.93939783,0.00054794,120]
[320723574,1711535444708,-1499.99,0.00054794,120]
[320723575,1711535444718,-500.0,0.00054794,120]
[320723576,1711535444727,-500.0,0.00054794,120]
[320723577,1711535444740,-19103.91,0.00054794,120]
[320723578,1711535444750,-507.6178546,0.00054794,120]
[320723579,1711535444759,-500.0,0.00054794,120]
[320723580,1711535444768,-581.85,0.00054794,120]
[320723581,1711535444778,-500.0,0.00054794,120]
[320723582,1711535444789,-1244.41,0.00054794,120]
[320723583,1711535444798,-502.97311018,0.00054794,120]
[320723584,1711535444807,-500.0,0.00054794,120]
[320723585,1711535444817,-1386.47,0.00054794,120]
[320723586,1711535444827,-4183.34,0.00054794,120]
[320723587,1711535444837,-500.0,0.00054794,120]
[320723588,1711535444846,-868.72,0.00054794,120]
[320723589,1711535444855,-500.0,0.00054794,120]
[320723590,1711535444866,-509.66652084,0.00054794,120]
[320723591,1711535444875,-500.0,0.00054794,120]
[320723592,1711535444884,-1414.99,0.00054794,120]
[320723593,1711535444894,-500.0,0.00054794,120]
[320723594,1711535444903,-500.0,0.00054794,120]
[320723595,1711535444912,-82584.13,0.00054794,120]
[320723596,1711535444922,-1324.38,0.00054794,120]
[320723597,1711535444931,-1881.54,0.00054794,120]
[320723598,1711535444940,-9805.92,0.00054794,120]
[320723599,1711535444949,-500.0,0.00054794,120]
[320723600,1711535444959,-500.0,0.00054794,120]
[320723601,1711535444967,-500.0,0.00054794,120]
[320723602,1711535444977,-7939.7,0.00054794,120]
[320723603,1711535444987,-4983.72,0.00054794,120]
[320723604,1711535444996,-503.07,0.00054794,120]
[320723605,1711535445005,-500.0,0.00054794,120]
[320723606,1711535445014,-500.0,0.00054794,120]
[320723607,1711535445023,-2083.32,0.00054794,120]
[320723608,1711535445032,-2057.01,0.00054794,120]
[320723609,1711535445042,-4138.21,0.00054794,120]
[320723610,1711535445051,-500.0,0.00054794,120]
[320723611,1711535445060,-2312.99,0.00054794,120]
[320723612,1711535445069,-311.81559997,0.00054794,120]
[320723613,1711535445078,-934.45,0.00054794,120]
[320723614,1711535445088,-500.0,0.00054794,120]
[320723615,1711535445097,-554.52859994,0.00054794,120]
[320723616,1711535445106,-5413.99,0.00054794,120]
[320723617,1711535445116,-529.2,0.00054794,120]
[320723618,1711535445128,-45867.43,0.00054794,120]
[320723619,1711535445138,-3831.46,0.00054794,120]
[320723620,1711535445147,-500.0,0.00054794,120]
[320723621,1711535445156,-11758.11,0.00054794,120]
[320723622,1711535445166,-500.0,0.00054794,120]
[320723623,1711535445175,-500.0,0.00054794,120]
[320723624,1711535445184,-500.0,0.00054794,120]
[320723625,1711535445193,-500.0,0.00054794,120]
[320723626,1711535445204,-648.98,0.00054794,120]
[320723627,1711535445213,-1549.03,0.00054794,120]
[320723628,1711535445222,-688.41,0.00054794,120]
[320723629,1711535445232,-753.61,0.00054794,120]
[320723630,1711535445241,-1933.32,0.00054794,120]
[320723631,1711535445250,-500.0,0.00054794,120]
[320723632,1711535445260,-4342.1,0.00054794,120]
[320723633,1711535445269,-500.0,0.00054794,120]
[320723634,1711535445278,-4780.48,0.00054794,120]
[320723635,1711535445287,-500.0,0.00054794,120]
[320723636,1711535445297,-500.0,0.00054794,7]
[320723637,1711535445306,-500.0,0.00054794,120]
[320723639,1711535445315,-869.17,0.00054794,120]
[320723642,1711535445324,-1744.62,0.00054794,120]
[320723644,1711535445333,-506.0698617,0.00054794,120]
[320723647,1711535445342,-4458.94,0.00054794,120]
[320723649,1711535445351,-500.0,0.00054794,120]
[320723651,1711535445361,-371.23448409,0.00054794,120]
[320723653,1711535445370,-934.74,0.00054794,120]
[320723654,1711535445379,-508.7214921,0.00054794,120]
[320723655,1711535445388,-1222.56,0.00054794,120]
[320723656,1711535445397,-5479.0,0.00054794,120]
[320723657,1711535445406,-500.0,0.00054794,120]
[320723658,1711535445415,-3598.99,0.00054794,120]
[320723659,1711535445424,-514.25,0.00054794,120]
[320723660,1711535445434,-500.0,0.00054794,120]
[320723661,1711535445442,-505.61124055,0.00054794,120]
[320723662,1711535445452,-500.0,0.00054794,120]
[320723663,1711535445461,-500.0,0.00054794,120]
[320723664,1711535445470,-10139.23,0.00054794,120]
[320723665,1711535445480,-500.0,0.00054794,65]
[320723666,1711535445489,-500.0,0.00054794,120]
[320723667,1711535445498,-500.0,0.00054794,120]
[320723668,1711535445508,-500.0,0.00054794,120]
[320723669,1711535445517,-500.0,0.00054794,120]
[320723670,1711535445526,-3044.29,0.00054794,120]
[320723671,1711535445535,-500.0,0.00054794,120]
[320723672,1711535445545,-500.0,0.00054794,120]
[320723673,1711535445554,-1531.76,0.00054794,120]
[320723674,1711535445564,-500.0,0.00054794,120]
[320723675,1711535445573,-500.0,0.00054794,120]
[320723676,1711535445582,-2268.4,0.00054794,120]
[320723677,1711535445592,-672.71,0.00054794,120]
[320723678,1711535445601,-500.0,0.00054794,120]
[320723679,1711535445610,-746.78,0.00054794,120]
[320723680,1711535445619,-2003.49,0.00054794,120]
[320723681,1711535445629,-2157.67,0.00054794,120]
[320723682,1711535445638,-500.0,0.00054794,120]
[320723683,1711535445648,-500.0,0.00054794,120]
[320723684,1711535445658,-613.71,0.00054794,120]
[320723685,1711535445667,-509.8050617,0.00054794,120]
[320723686,1711535445677,-1085.78,0.00054794,120]
[320723687,1711535445686,-500.0,0.00054794,120]
[320723688,1711535445695,-1025.73,0.00054794,120]
[320723689,1711535445705,-30594.03,0.00054794,120]
[320723690,1711535445715,-48939.14,0.00054794,120]
[320723691,1711535445724,-500.0,0.00054794,120]
[320723692,1711535445735,-4227.9,0.00054794,120]